fUSD/lending_fUSD_20251129
["ID","MTS","AMOUNT","RATE_DAILY","PERIOD"]
[395061183,1764389103891,500.8,7.429e-05,2]
[395061184,1764389104094,500.8,7.82e-05,2]
[395061185,1764389104298,500.8,8.211e-05,2]
[395061186,1764389104586,500.8,8.602e-05,2]
[395061187,1764389104753,500.8,8.993e-05,2]
[395061188,1764389104953,500.8,9.384e-05,2]
[395061189,1764389105143,500.8,9.775e-05,2]
[395061190,1764389105615,500.8,0.00010166,2]
[395061191,1764389105770,500.8,0.00010557,2]
[395061192,1764389105999,500.8,0.00010948,2]
[395061193,1764389106528,500.8,0.00011339,2]
[395061194,1764389106611,500.8,0.0001173,2]
[395061195,1764389106739,500.8,0.00012121,2]
[395061196,1764389106832,500.8,0.00012512,2]
[395061197,1764389107004,500.8,0.00012903,2]
[395061198,1764389107216,500.8,0.00013294,2]
[395061199,1764389107411,500.8,0.00013685,2]
[395061200,1764389107606,500.8,0.00014075,2]
[395061201,1764389107822,500.8,0.00014466,2]
[395061234,1764389433260,-363.75,0.00014782,2]
[395061235,1764389433269,-210.0,0.00014782,2]
[395061236,1764389433278,-1188.18481334,0.00014854,2]
[395061237,1764389433287,-1577.29247553,0.00014854,2]
[395061238,1764389433296,-500.8,0.00014857,2]
[395061239,1764389433305,-302.56851205,0.00014875,2]
[395061240,1764389433315,-1200.0,0.00014892,2]
[395061241,1764389433324,-300.0,0.00014892,2]
[395061242,1764389433332,-48.54414221,0.00014893,2]
[395061243,1764389433343,-6315.36585779,0.00014893,2]
[395061244,1764389433352,-151.0,0.00014948,2]
[395061245,1764389433362,-150.0,0.0001495,2]
[395061246,1764389433370,-500.0,0.0001495,2]
[395061247,1764389433379,-276.53042095,0.0001495,2]
[395061248,1764389433388,-72386.84476264,0.00014951,2]
[395061249,1764389433424,-753.44765478,0.00014951,2]
[395061250,1764389433459,-254.0,0.00014951,2]
[395061251,1764389433501,-2524.295589,0.00014951,2]
[395061252,1764389433512,-126115.26614295,0.00014951,2]
[395061254,1764389438491,-500.0,0.0001495,2]
[395061255,1764389438500,-18516.32010675,0.00014951,2]
[395061256,1764389438511,-5986.32801524,0.00014951,2]
[395061257,1764389438522,-24325.9214029,0.00014951,2]
[395061258,1764389438534,-543.57890316,0.00014951,2]
[395061259,1764389438544,-58944.27085631,0.00014951,2]
[395061260,1764389438566,-13195.53181498,0.00014951,2]
[395061261,1764389438577,-628.73244732,0.00014951,2]
[395061262,1764389438588,-564.0886184,0.00014951,2]
[395061263,1764389438604,-25552.3453247,0.00014951,2]
[395061264,1764389438659,-441.70868959,0.00014951,2]
[395061265,1764389438670,-7396.46225131,0.00014951,2]
[395061266,1764389438683,-454.32770285,0.00014951,2]
[395061267,1764389438695,-1723.26,0.00014951,2]
[395061268,1764389438706,-2566.75197887,0.00014951,2]
[395061269,1764389438739,-3048.48917838,0.00014951,2]
[395061270,1764389438769,-423.81024343,0.00014951,2]
[395061271,1764389438780,-2012.77405445,0.00014951,2]
[395061272,1764389439040,-666.0,0.00014951,2]
[395061273,1764389439454,-570.39513047,0.00014951,2]
[395061274,1764389439466,-390405.04913152,0.00014951,2]
[395061275,1764389439476,-833.0,0.00014954,2]
[395061276,1764389439485,-6197.65,0.00014956,2]
[395061277,1764389439494,-151.0,0.00015048,2]
[395061278,1764389439504,-100039.72,0.00015051,2]
[395061279,1764389439514,-252.98317961,0.00015188,2]
[395061280,1764389439524,-154.6279571,0.00015288,2]
[395061281,1764389439533,-159.02910352,0.00015288,2]
[395061282,1764389439543,-150.0,0.00015288,2]
[395061283,1764389439553,-150.0,0.00015288,2]
[395061284,1764389439562,-168.22944718,0.00015288,2]
[395061285,1764389439572,-150.0,0.00015288,2]
[395061286,1764389439581,-200.0,0.00015561,2]
[395061287,1764389439591,-999.0,0.00015567,3]
[395061288,1764389439600,-625.18,0.00015576,2]
[395061289,1764389439609,-2500.0,0.00015597,2]
[395061290,1764389439618,-616.75169948,0.00015597,2]
[395061291,1764389439628,-363.75,0.00015603,2]
[395061292,1764389439637,-1577.29247552,0.00015639,2]
[395061293,1764389439646,-500.0,0.00015688,2]
[395061294,1764389439655,-151.0,0.00015688,2]
[395061295,1764389439665,-151.0,0.00015688,2]
[395061296,1764389439674,-200.0,0.00015688,2]
[395061297,1764389439686,-151.0,0.00015688,2]
[395061298,1764389439697,-151.0,0.00015688,2]
[395061299,1764389439707,-151.0,0.00015688,2]
[395061300,1764389439716,-151.0,0.00015688,2]
[395061301,1764389439727,-200.0,0.00015688,2]
[395061302,1764389439737,-151.0,0.00015688,2]
[395061303,1764389439746,-151.0,0.00015688,2]
[395061304,1764389439758,-151.0,0.00015688,2]
[395061305,1764389439768,-151.0,0.00015688,2]
[395061306,1764389439777,-151.0,0.00015688,2]
[395061307,1764389439787,-151.0,0.00015688,2]
[395061308,1764389439796,-200.0,0.00015688,2]
[395061309,1764389439805,-405.57601841,0.00015695,2]
[395061310,1764389439815,-161.365,0.00015696,2]
[395061311,1764389439824,-3765.034,0.00015696,2]
[395061312,1764389439834,-515.92335866,0.00015696,2]
[395061313,1764389439844,-510.09968857,0.00015696,2]
[395061314,1764389439855,-502.83944396,0.00015696,2]
[395061315,1764389439864,-500.0,0.00015696,2]
[395061316,1764389439874,-500.0,0.00015696,2]
[395061317,1764389439883,-513.09178011,0.00015696,2]
[395061318,1764389439893,-500.0,0.00015696,2]
[395061319,1764389439902,-500.0,0.00015696,2]
[395061320,1764389439911,-500.0,0.00015696,2]
[395061321,1764389439920,-1000.0,0.00015697,2]
[395061322,1764389439930,-8018.7161,0.00015697,2]
[395061323,1764389439939,-600.0,0.00015697,2]
[395061325,1764389439948,-9883.75,0.00015793,2]
[395061327,1764389439957,-150.0,0.00015793,2]
[395061328,1764389439967,-500.0,0.00015793,2]
[395061329,1764389439976,-500.0,0.00015793,2]
[395061330,1764389439985,-150.0,0.00015793,2]
[395061331,1764389439994,-208.99032631,0.00015793,2]
[395061332,1764389440003,-500.0,0.00015793,2]
[395061333,1764389440011,-500.0,0.00015793,2]
[395061334,1764389440021,-500.0,0.00015796,2]
[395061335,1764389440029,-500.0,0.00015796,2]
[395061336,1764389440038,-500.0,0.00015796,2]
[395061337,1764389440047,-150.0,0.00015796,2]
[395061338,1764389440056,-927.0,0.00015796,2]
[395061339,1764389440065,-500.0,0.00015796,2]
[395061340,1764389440074,-457.0,0.00015796,2]
[395061341,1764389440082,-500.0,0.00015796,2]
[395061342,1764389440089,-1136.0,0.00015796,2]
[395061343,1764389440099,-500.0,0.00015796,2]
[395061344,1764389440108,-150.0,0.00015796,2]
[395061345,1764389440119,-159.9648499,0.00015796,2]
[395061346,1764389440128,-500.0,0.00015899,2]
[395061348,1764389440137,-500.27300015,0.00015899,2]
[395061349,1764389440146,-361.95104206,0.000159,2]
[395061350,1764389440155,-361.95104205,0.000159,2]
[395061351,1764389440164,-361.95104205,0.000159,2]
[395061352,1764389440173,-361.95104205,0.000159,2]
[395061353,1764389440185,-268.72,0.00015918,2]
[395061354,1764389440194,-500.0,0.0001593,2]
[395061355,1764389440203,-500.0,0.0001593,2]
[395061356,1764389440212,-500.0,0.0001593,2]
[395061357,1764389440221,-500.0,0.0001593,2]
[395061358,1764389440230,-500.0,0.00015933,2]
[395061359,1764389440239,-500.0,0.00015933,2]
[395061360,1764389440248,-500.0,0.00015933,2]
[395061361,1764389440257,-150.0,0.00015933,2]
[395061362,1764389440266,-927.0,0.00015933,2]
[395061363,1764389440276,-500.0,0.00015933,2]
[395061364,1764389440285,-457.0,0.00015933,2]
[395061365,1764389440294,-500.0,0.00015933,2]
[395061366,1764389440304,-1136.0,0.00015933,2]
[395061367,1764389440314,-500.0,0.00015933,2]
[395061368,1764389440323,-600.0,0.00015971,2]
[395061369,1764389440333,-1242.57737812,0.00015971,2]
[395061370,1764389440342,-501.02061135,0.00015973,2]
[395061371,1764389440351,-500.0,0.00015973,2]
[395061372,1764389440360,-168.80860309,0.00015973,2]
[395061373,1764389440369,-500.0,0.00015973,2]
[395061374,1764389440378,-533.48476071,0.00015973,2]
[395061375,1764389440387,-500.0,0.00015973,2]
[395061376,1764389440396,-500.0,0.00015973,2]
[395061377,1764389440405,-504.0571586,0.00015973,2]
[395061378,1764389440414,-557.79853183,0.00015973,2]
[395061379,1764389440423,-500.0,0.00015973,2]
[395061380,1764389440432,-500.0,0.00015973,2]
[395061381,1764389440442,-200.84077125,0.00015973,2]
[395061382,1764389440451,-501.10650118,0.00015973,2]
[395061383,1764389440460,-598.51138711,0.00015973,2]
[395061384,1764389440470,-500.0,0.00015973,2]
[395061385,1764389440479,-500.0,0.00015973,2]
[395061386,1764389440488,-500.0,0.00015973,2]
[395061387,1764389440497,-500.0,0.00015973,2]
[395061388,1764389440507,-500.0,0.00015973,2]
[395061389,1764389440516,-500.0,0.00015973,2]
[395061390,1764389440525,-500.33310911,0.00015973,2]
[395061391,1764389440545,-430.3435593,0.00015973,2]
[395061392,1764389440562,-150.0,0.00015973,2]
[395061393,1764389440580,-500.0,0.00015973,2]
[395061394,1764389440598,-500.0,0.00015973,2]
[395061395,1764389440613,-157.27872428,0.00015973,2]
[395061396,1764389440631,-500.0,0.00015973,2]
[395061397,1764389440651,-150.0,0.00015973,2]
[395061398,1764389440671,-500.0,0.00015973,2]
[395061399,1764389440691,-500.0,0.00016056,2]
[395061400,1764389440710,-500.0,0.00016067,2]
[395061401,1764389440728,-500.0,0.00016067,2]
[395061402,1764389440742,-500.0,0.00016067,2]
[395061403,1764389440761,-500.0,0.00016067,2]
[395061404,1764389440773,-500.0,0.0001607,2]
[395061405,1764389440790,-500.0,0.0001607,2]
[395061406,1764389440805,-500.0,0.0001607,2]
[395061407,1764389440818,-150.0,0.0001607,2]
[395061408,1764389440841,-927.0,0.0001607,2]
[395061409,1764389440855,-500.0,0.0001607,2]
[395061410,1764389440870,-457.0,0.0001607,2]
[395061411,1764389440884,-500.0,0.0001607,2]
[395061412,1764389440899,-1136.0,0.0001607,2]
[395061413,1764389440915,-500.0,0.0001607,2]
[395061414,1764389440929,-255.0,0.00016072,2]
[395061415,1764389440945,-150.0,0.0001611,2]
[395061416,1764389440960,-500.0,0.0001611,2]
[395061417,1764389440975,-500.0,0.0001611,2]
[395061418,1764389440989,-500.0,0.0001611,2]
[395061419,1764389441003,-150.0,0.0001611,2]
[395061420,1764389441018,-510.00123417,0.0001611,2]
[395061421,1764389441032,-150.0,0.00016137,2]
[395061422,1764389441047,-313.41030196,0.00016204,2]
[395061423,1764389441064,-500.0,0.00016204,2]
[395061424,1764389441079,-500.0,0.00016204,2]
[395061425,1764389441095,-500.0,0.00016204,2]
[395061426,1764389441110,-500.0,0.00016207,2]
[395061427,1764389441126,-500.0,0.00016207,2]
[395061428,1764389441141,-500.0,0.00016207,2]
[395061429,1764389441156,-150.0,0.00016207,2]
[395061430,1764389441171,-927.0,0.00016207,2]
[395061431,1764389441185,-500.0,0.00016207,2]
[395061432,1764389441201,-457.0,0.00016207,2]
[395061433,1764389441216,-500.0,0.00016207,2]
[395061434,1764389441231,-1136.0,0.00016207,2]
[395061435,1764389441246,-500.0,0.00016207,2]
[395061436,1764389441260,-500.0,0.00016236,2]
[395061437,1764389441274,-200.0,0.00016236,2]
[395061438,1764389441289,-200.0,0.00016236,2]
[395061439,1764389441303,-600.0,0.00016245,2]
[395061440,1764389441319,-213.18459641,0.00016247,2]
[395061441,1764389441334,-500.0,0.00016247,2]
[395061442,1764389441349,-306.95966916,0.00016247,2]
[395061443,1764389441365,-500.0,0.00016247,2]
[395061444,1764389441379,-266.46737986,0.00016247,2]
[395061445,1764389441394,-250.0,0.0001626,2]
[395061446,1764389441409,-240.0,0.000163,2]
[395061447,1764389441425,-500.0,0.00016341,2]
[395061448,1764389441439,-500.0,0.00016341,2]
[395061449,1764389441454,-306.0,0.00016341,2]
[395061450,1764389441469,-500.0,0.00016341,2]
[395061451,1764389441484,-193.0,0.00016343,2]
[395061452,1764389441499,-250.0,0.00016343,2]
[395061453,1764389441513,-195.0,0.00016343,2]
[395061454,1764389441529,-300.0,0.00016343,2]
[395061455,1764389441543,-250.0,0.00016343,2]
[395061456,1764389441558,-158.21158716,0.00016344,2]
[395061457,1764389441572,-500.0,0.00016344,2]
[395061458,1764389441587,-421.64448865,0.00016344,2]
[395061459,1764389441602,-150.0,0.00016344,2]
[395061460,1764389441618,-927.0,0.00016344,2]
[395061461,1764389441632,-500.0,0.00016344,2]
[395061462,1764389441647,-457.0,0.00016344,2]
[395061463,1764389441662,-500.0,0.00016344,2]
[395061464,1764389441677,-1136.0,0.00016344,2]
[395061465,1764389441695,-500.0,0.00016344,2]
[395061466,1764389441709,-1188.18481334,0.00016358,2]
[395061467,1764389441726,-1680.0,0.00016381,2]
[395061468,1764389441740,-500.0,0.00016384,2]
[395061469,1764389441755,-473.76466444,0.00016384,2]
[395061470,1764389441771,-150.0,0.000164,2]
[395061471,1764389441786,-210.0,0.000164,2]
[395061472,1764389441801,-240.22599925,0.000164,2]
[395061473,1764389441816,-1577.29247552,0.00016423,2]
[395061474,1764389441831,-363.75,0.00016424,2]
[395061475,1764389441845,-500.0,0.00016438,2]
[395061476,1764389441859,-1722.78,0.00016438,2]
[395061477,1764389441873,-1485.0,0.00016438,2]
[395061478,1764389441888,-800.0,0.00016438,2]
[395061479,1764389441902,-500.0,0.00016478,2]
[395061480,1764389441916,-500.0,0.00016478,2]
[395061481,1764389441931,-500.0,0.00016478,2]
[395061482,1764389441945,-500.0,0.00016481,2]
[395061483,1764389441959,-206.13564344,0.00016481,2]
[395061484,1764389441974,-927.0,0.00016481,2]
[395061485,1764389441988,-500.0,0.00016481,2]
[395061486,1764389442003,-457.0,0.00016481,2]
[395061487,1764389442019,-500.0,0.00016481,2]
[395061488,1764389442035,-1136.0,0.00016481,2]
[395061489,1764389442050,-500.0,0.00016481,2]
[395061490,1764389442064,-1405.01972296,0.000165,2]
[395061491,1764389442080,-701.64899719,0.000165,2]
[395061492,1764389442094,-600.0,0.00016519,2]
[395061493,1764389442109,-1000.0,0.00016521,2]
[395061494,1764389442124,-1000.0,0.00016521,2]
[395061495,1764389442139,-174.67915074,0.00016521,2]
[395061496,1764389442153,-502.90543056,0.00016521,2]
[395061498,1764389442168,-503.53520414,0.00016521,2]
[395061499,1764389442182,-1000.0,0.00016521,2]
[395061500,1764389442197,-1000.0,0.00016521,2]
[395061501,1764389442212,-1000.0,0.00016521,2]
[395061504,1764389442226,-1000.0,0.00016521,2]
[395061507,1764389442241,-1000.0,0.00016521,2]
[395061508,1764389442256,-1000.0,0.00016521,2]
[395061509,1764389442270,-1000.0,0.00016521,2]
[395061510,1764389442285,-500.0,0.00016521,2]
[395061511,1764389442299,-34616.56749721,0.00016558,2]
[395061512,1764389442315,-500.0,0.00016575,2]
[395061513,1764389442329,-471.30056748,0.00016595,2]
[395061514,1764389442346,-3777.69607491,0.00016596,2]
[395061515,1764389442361,-500.0,0.00016615,2]
[395061516,1764389442375,-500.0,0.00016615,2]
[395061517,1764389442389,-500.0,0.00016615,2]
[395061518,1764389442404,-500.0,0.00016618,2]
[395061519,1764389442419,-927.0,0.00016618,2]
[395061520,1764389442437,-500.0,0.00016618,2]
[395061521,1764389442452,-457.0,0.00016618,2]
[395061522,1764389442467,-500.0,0.00016618,2]
[395061523,1764389442481,-1136.0,0.00016618,2]
[395061524,1764389442507,-500.0,0.00016618,2]
[395061525,1764389442522,-500.0,0.00016658,2]
[395061526,1764389442537,-1229.27630681,0.00016695,2]
[395061527,1764389442551,-500.0,0.00016712,2]
[395061528,1764389442565,-500.0,0.00016752,2]
[395061529,1764389442589,-500.0,0.00016752,2]
[395061530,1764389442602,-500.0,0.00016752,2]
[395061531,1764389442612,-500.0,0.00016755,2]
[395061532,1764389442621,-927.0,0.00016755,2]
[395061533,1764389442631,-500.0,0.00016755,2]
[395061534,1764389442640,-457.0,0.00016755,2]
[395061535,1764389442649,-500.0,0.00016755,2]
[395061536,1764389442658,-1136.0,0.00016755,2]
[395061537,1764389442668,-500.0,0.00016755,2]
[395061538,1764389442677,-616.75169944,0.00016775,2]
[395061539,1764389442688,-200.0,0.00016784,2]
[395061540,1764389443089,-200.0,0.00016784,2]
[395061541,1764389443132,-600.0,0.00016793,2]
[395061542,1764389443161,-511.34890298,0.00016795,2]
[395061543,1764389443170,-157.51062532,0.00016798,2]
[395061544,1764389443180,-311.04597449,0.000168,2]
[395061545,1764389443189,-1852.42,0.00016844,2]
[395061546,1764389443199,-500.0,0.00016849,2]
[395061547,1764389443208,-1522.03619476,0.00016867,2]
[395061548,1764389443217,-1859.0,0.00016886,2]
[395061549,1764389443227,-500.0,0.00016889,2]
[395061550,1764389443236,-527.4474373,0.00016889,2]
[395061551,1764389443245,-262.3802132,0.00016889,2]
[395061552,1764389443254,-500.0,0.00016892,2]
[395061553,1764389443262,-927.0,0.00016892,2]
[395061554,1764389443271,-500.0,0.00016892,2]
[395061555,1764389443280,-457.0,0.00016892,2]
[395061556,1764389443289,-500.0,0.00016892,2]
[395061557,1764389443298,-1136.0,0.00016892,2]
[395061558,1764389443308,-499.84444829,0.00016892,2]
[395061559,1764389443317,-151.02280674,0.00016899,2]
[395061560,1764389443326,-155.29376756,0.00016899,2]
[395061561,1764389443335,-152.79299703,0.000169,2]
[395061562,1764389443344,-155.0383737,0.000169,2]
[395061563,1764389443354,-157.84401901,0.000169,2]
[395061564,1764389443364,-151.92540351,0.000169,2]
[395061565,1764389443373,-150.0,0.000169,2]
[395061566,1764389443382,-152.6737811,0.000169,2]
[395061567,1764389443391,-282.15,0.000169,2]
[395061568,1764389443400,-151.91866068,0.000169,2]
[395061569,1764389443409,-366.46791422,0.000169,2]
[395061570,1764389443419,-346.21279656,0.000169,2]
[395061571,1764389443428,-316.09405437,0.000169,2]
[395061572,1764389443437,-595.07469987,0.000169,2]
[395061573,1764389443446,-2812.0,0.00016925,2]
[395061574,1764389443455,-6898.0,0.00016959,2]
[395061575,1764389443464,-6127.0,0.00016959,2]
[395061576,1764389443474,-500.0,0.0001697,2]
[395061577,1764389443483,-500.0,0.0001697,2]
[395061578,1764389443493,-584.40163245,0.0001697,2]
[395061579,1764389443502,-1000.0,0.0001697,2]
[395061580,1764389443512,-1000.0,0.0001697,2]
[395061581,1764389443521,-1000.0,0.0001697,2]
[395061582,1764389443530,-1000.0,0.0001697,2]
[395061583,1764389443539,-1336.57021784,0.0001697,2]
[395061584,1764389443549,-500.0,0.00016973,2]
[395061585,1764389443558,-500.0,0.00016973,2]
[395061586,1764389443567,-500.0,0.00016973,2]
[395061587,1764389443577,-500.0,0.00016973,2]
[395061588,1764389443586,-500.0,0.00016973,2]
[395061589,1764389443595,-502.62252388,0.00016973,2]
[395061590,1764389443605,-500.0,0.00016973,2]
[395061591,1764389443615,-160.05320406,0.00016973,2]
[395061592,1764389443624,-160.05429824,0.00016973,2]
[395061593,1764389443634,-156.0371633,0.00016973,2]
[395061594,1764389443643,-500.0,0.00016973,2]
[395061595,1764389443652,-500.0,0.00016973,2]
[395061596,1764389443661,-500.0,0.00016973,2]
[395061597,1764389443671,-507.84911931,0.00016973,2]
[395061598,1764389443681,-500.0,0.00016973,2]
[395061599,1764389443695,-500.0,0.00016973,2]
[395061600,1764389443704,-500.0,0.00016973,2]
[395061601,1764389443713,-160.05339585,0.00016973,2]
[395061602,1764389443723,-333.4830249,0.00016973,2]
[395061603,1764389443734,-161.88708279,0.00016973,2]
[395061604,1764389443743,-500.0,0.00016973,2]
[395061605,1764389443753,-500.0,0.00016973,2]
[395061606,1764389443762,-160.05288481,0.00016973,2]
[395061607,1764389443771,-500.0,0.00016973,2]
[395061608,1764389443779,-500.0,0.00016973,2]
[395061609,1764389443789,-160.05193945,0.00016973,2]
[395061610,1764389443806,-500.0,0.00016973,2]
[395061611,1764389443816,-161.52693208,0.00016973,2]
[395061612,1764389443826,-500.0,0.00016973,2]
[395061613,1764389443836,-500.0,0.00016973,2]
[395061614,1764389443845,-500.0,0.00016973,2]
[395061615,1764389443854,-500.0,0.00016973,2]
[395061616,1764389443863,-500.0,0.00016973,2]
[395061617,1764389443873,-150.0,0.00016973,2]
[395061618,1764389443883,-500.2924213,0.00016973,2]
[395061619,1764389443893,-500.0,0.00016973,2]
[395061620,1764389443903,-500.0,0.00016973,2]
[395061621,1764389443912,-165.01800137,0.00016973,2]
[395061622,1764389443922,-500.0,0.00016973,2]
[395061623,1764389443932,-500.0,0.00016973,2]
[395061624,1764389443941,-500.0,0.00016973,2]
[395061625,1764389443950,-200.03465566,0.00016973,2]
[395061626,1764389443959,-502.81238066,0.00016973,2]
[395061627,1764389443968,-160.05340156,0.00016973,2]
[395061628,1764389443978,-160.05303476,0.00016973,2]
[395061629,1764389443987,-500.0,0.00016973,2]
[395061630,1764389443997,-175.94033749,0.00016973,2]
[395061631,1764389444006,-306.08212615,0.00016973,2]
[395061632,1764389444017,-501.32291125,0.00016973,2]
[395061633,1764389444027,-160.05338935,0.00016973,2]
[395061634,1764389444036,-500.0,0.00016973,2]
[395061635,1764389444047,-160.14128752,0.00016973,2]
[395061636,1764389444058,-500.0,0.00016973,2]
[395061637,1764389444068,-500.0,0.00016973,2]
[395061638,1764389444078,-160.04790808,0.00016973,2]
[395061639,1764389444087,-500.0,0.00016973,2]
[395061640,1764389444096,-500.0,0.00016973,2]
[395061641,1764389444105,-500.0,0.00016973,2]
[395061642,1764389444115,-501.37205066,0.00016973,2]
[395061643,1764389444125,-160.05339098,0.00016973,2]
[395061644,1764389444134,-501.27985406,0.00016973,2]
[395061645,1764389444143,-997.51,0.00016973,2]
[395061646,1764389444152,-500.0,0.00016986,2]
[395061647,1764389444161,-150.0,0.00016986,2]
[395061648,1764389444171,-159.58790871,0.00016986,2]
[395061649,1764389444179,-250.0,0.00016988,2]
[395061650,1764389444189,-250.0,0.00016988,2]
[395061651,1764389444199,-250.0,0.00016988,2]
[395061652,1764389444208,-250.0,0.00016988,2]
[395061653,1764389444216,-250.0,0.00016988,2]
[395061654,1764389444226,-250.0,0.00016988,2]
[395061655,1764389444236,-250.0,0.00016988,2]
[395061656,1764389444245,-250.0,0.00016988,2]
[395061657,1764389444256,-250.0,0.00016988,2]
[395061658,1764389444267,-250.0,0.00016988,2]
[395061659,1764389444276,-250.0,0.00016988,2]
[395061660,1764389444285,-250.0,0.00016988,2]
[395061661,1764389444294,-250.0,0.00016988,2]
[395061662,1764389444306,-250.0,0.00016988,2]
[395061663,1764389444318,-250.0,0.00016988,2]
[395061664,1764389444327,-250.0,0.00016988,2]
[395061665,1764389444336,-250.0,0.00016988,2]
[395061666,1764389444347,-250.0,0.00016988,2]
[395061667,1764389444356,-250.0,0.00016988,2]
[395061668,1764389444366,-250.0,0.00016988,2]
[395061669,1764389444375,-1262.06758986,0.0001699,2]
[395061670,1764389444384,-1262.06758986,0.0001699,2]
[395061671,1764389444394,-15655.7745496,0.00016995,2]
[395061672,1764389444404,-880.2804135,0.00016995,2]
[395061673,1764389444413,-1125.0776647,0.00016995,2]
[395061674,1764389444423,-9277.9220525,0.00016995,2]
[395061675,1764389444432,-12987.0092267,0.00016995,2]
[395061676,1764389444441,-10644.7248226,0.00016995,2]
[395061677,1764389444451,-151.0,0.00016997,2]
[395061678,1764389444460,-500.0,0.00016999,2]
[395061679,1764389444469,-501.54402529,0.00016999,2]
[395061680,1764389444479,-895308.23054474,0.00017,2]
[395061685,1764389445590,-99976.57857973,0.00017,2]
[395061686,1764389445601,-134377.24124587,0.00017,2]
[395061693,1764389445786,-2844.65135962,0.00017,2]
[395061694,1764389445825,-21026.75188112,0.00017,2]
[395061695,1764389445836,-4348.12435315,0.00017,2]
[395061696,1764389445973,-3603.41307102,0.00017,2]
[395061697,1764389447200,-348.70449752,0.0001495,2]
[395061698,1764389447210,-500.0,0.00016438,2]
[395061699,1764389447221,-500.0,0.00016438,2]
[395061700,1764389447232,-500.0,0.00016438,2]
[395061701,1764389447241,-500.0,0.00016438,2]
[395061702,1764389447250,-500.0,0.00016438,2]
[395061703,1764389447260,-338.71065969,0.00016438,2]
[395061704,1764389447269,-500.0,0.00016438,2]
[395061705,1764389447278,-500.0,0.00016438,2]
[395061706,1764389447288,-108061.80107961,0.00017,2]
[395061707,1764389447308,-773.11986588,0.00017,2]
[395061708,1764389447343,-272.5,0.00017,2]
[395061709,1764389447354,-1020.52201892,0.00017,2]
[395061710,1764389448266,-252.9831796,0.00016044,2]
[395061711,1764389448275,-267163.4925819,0.00017,2]
[395061712,1764389448294,-5405.47653459,0.00017,2]
[395061713,1764389448327,-2664.45949693,0.00017,2]
[395061717,1764389615378,304.79711348,0.00022,30]
[395061719,1764389654303,-1070.51384521,0.00014751,2]
[395061720,1764389654326,-151.0,0.00014848,2]
[395061721,1764389654348,-151.0,0.00014848,2]
[395061722,1764389654371,-300.0,0.00014849,2]
[395061723,1764389654394,-150.0,0.0001485,2]
[395061724,1764389654417,-300.0,0.0001485,2]
[395061725,1764389654440,-1200.0,0.0001485,2]
[395061726,1764389654462,-543.57129467,0.0001485,2]
[395061727,1764389654487,-272.03511104,0.0001485,2]
[395061728,1764389654512,-19458.87974908,0.00014851,2]
[395061729,1764389655876,-23597.0,0.00014851,2]
[395061730,1764389666822,-151.0,0.00014848,2]
[395061731,1764389666844,-151.0,0.00014848,2]
[395061732,1764389666872,-23295.0,0.00014851,2]
[395061736,1764390092763,161.36559071,0.00014554,2]
[395061737,1764390092805,3047.13,0.00014554,2]
[395061738,1764390239792,563.3,0.00013699,2]
[395061744,1764390418405,1000.0,0.00014724,2]
[395061754,1764390450328,152.17,0.00019178,30]